fUST/lending_fUST_20240214
["ID","MTS","AMOUNT","RATE_DAILY","PERIOD"]
[313950635,1707850030487,-500.0,0.00035616,14]
[313950636,1707850030508,-500.0,0.00035616,14]
[313950637,1707850030529,-637.21,0.00035616,14]
[313950638,1707850030548,-637.21,0.00035616,14]
[313950639,1707850030569,-637.21,0.00035616,14]
[313950640,1707850030590,-637.21,0.00035616,14]
[313950641,1707850030624,-637.21,0.00035616,14]
[313950642,1707850030646,-637.21,0.00035616,14]
[313950643,1707850030669,-500.0,0.00035616,14]
[313950644,1707850030691,-500.0,0.00035616,14]
[313950645,1707850030716,-500.0,0.00035616,14]
[313950646,1707850030738,-500.0,0.00035616,14]
[313950647,1707850030761,-292.29656473,0.00035616,14]
[313950648,1707850030784,-500.0,0.00035616,14]
[313950649,1707850030806,-500.0,0.00035616,14]
[313950650,1707850030827,-579.94419427,0.00035616,14]
[313950651,1707850030849,-1378.0,0.00035747,31]
[313950652,1707850030869,-909.0,0.00035901,2]
[313950653,1707850030891,-1000.0,0.00036,36]
[313950654,1707850030913,-302.0,0.00036121,3]
[313950655,1707850030933,-165.1615894,0.0003619,2]
[313950656,1707850030955,-153.0,0.0003619,2]
[313950657,1707850030980,-153.0,0.0003619,2]
[313950658,1707850031001,-153.0,0.0003619,2]
[313950659,1707850031023,-153.0,0.0003619,2]
[313950660,1707850031044,-153.0,0.0003619,2]
[313950661,1707850031064,-153.0,0.0003619,2]
[313950662,1707850031085,-153.0,0.0003619,2]
[313950663,1707850031105,-153.0,0.0003619,2]
[313950664,1707850031125,-254.37019119,0.0003624,2]
[313950665,1707850031145,-923.0,0.00036247,2]
[313950666,1707850031168,-5050.47724239,0.00036585,2]
[313950667,1707850031188,-156.5002996,0.00036756,2]
[313950668,1707850031207,-200.0,0.0003692,2]
[313950669,1707850031227,-200.0,0.0003692,2]
[313950670,1707850031247,-205.0264,0.0003692,2]
[313950671,1707850031268,-1361.84026693,0.00036978,33]
[313950672,1707850031290,-500.0,0.00036999,14]
[313950673,1707850031311,-2310.06,0.00036999,14]
[313950674,1707850031333,-500.0,0.00036999,14]
[313950675,1707850031355,-637.21,0.00036999,14]
[313950676,1707850031376,-15127.94684031,0.00037,8]
[313950677,1707850031397,-1000.0,0.00037,37]
[313950678,1707850031417,-12055.54295435,0.00037,3]
[313950679,1707850031438,-156.00429501,0.00037083,4]
[313950680,1707850031461,-500.0,0.00037097,14]
[313950681,1707850031481,-3407.48103836,0.000371,30]
[313950682,1707850031503,-1833.729052,0.000371,9]
[313950683,1707850031526,-1207.759157,0.000371,9]
[313950684,1707850031547,-698.08489323,0.00037102,2]
[313950685,1707850031568,-1000.0,0.0003712,9]
[313950686,1707850031588,-1000.0,0.0003712,9]
[313950687,1707850031608,-1000.0,0.0003714,9]
[313950688,1707850031627,-1000.0,0.0003714,9]
[313950689,1707850031647,-1000.0,0.0003716,9]
[313950690,1707850031668,-1000.0,0.0003716,9]
[313950691,1707850031687,-150.5,0.00037172,35]
[313950692,1707850031710,-1000.0,0.0003718,9]
[313950693,1707850031730,-1000.0,0.0003718,9]
[313950694,1707850031753,-150.5,0.00037182,35]
[313950695,1707850031773,-150.5,0.00037192,35]
[313950696,1707850031795,-271.9,0.00037192,35]
[313950697,1707850031815,-154.95355109,0.000372,4]
[313950698,1707850031835,-1000.0,0.000372,9]
[313950699,1707850031856,-1000.0,0.000372,9]
[313950700,1707850031878,-154.87609912,0.000372,4]
[313950701,1707850031899,-154.86062544,0.000372,4]
[313950702,1707850031920,-209.65955535,0.000372,4]
[313950703,1707850031940,-11558.84940842,0.000372,2]
[313950704,1707850031962,-500.0,0.00037201,14]
[313950705,1707850031983,-459.66,0.00037201,14]
[313950706,1707850032005,-151.0,0.00037202,2]
[313950707,1707850032026,-239.946822,0.00037202,2]
[313950708,1707850032049,-151.0,0.00037202,2]
[313950709,1707850032070,-151.0,0.00037202,2]
[313950710,1707850032093,-151.0,0.00037202,2]
[313950711,1707850032115,-154.309868,0.00037202,2]
[313950712,1707850032136,-197.116436,0.00037202,2]
[313950713,1707850032156,-300.29602068,0.00037202,15]
[313950714,1707850032179,-227.94742468,0.00037202,15]
[313950715,1707850032200,-236.42788801,0.00037202,15]
[313950716,1707850032224,-152.353166,0.00037203,2]
[313950717,1707850032251,-500.0,0.00037205,14]
[313950718,1707850032273,-2310.06,0.00037205,14]
[313950719,1707850032295,-500.0,0.00037205,14]
[313950720,1707850032316,-637.21,0.00037205,14]
[313950721,1707850032338,-907.14192831,0.00037206,4]
[313950722,1707850032359,-166.00654704,0.00037206,4]
[313950723,1707850032378,-156.23048351,0.00037206,4]
[313950724,1707850032405,-155.07598723,0.00037206,4]
[313950725,1707850032426,-155.94017769,0.00037206,4]
[313950726,1707850032448,-1202.57082301,0.00037206,4]
[313950727,1707850032469,-324.25284351,0.00037206,4]
[313950728,1707850032489,-155.45691459,0.00037206,4]
[313950729,1707850032603,-1498.47437011,0.00037206,4]
[313950730,1707850032627,-681.3383372,0.00037206,4]
[313950731,1707850032649,-29440.84163369,0.00037206,4]
[313950732,1707850032673,-500.0,0.00037207,14]
[313950733,1707850032698,-500.0,0.00037207,14]
[313950734,1707850032719,-500.0,0.00037207,14]
[313950735,1707850032741,-500.0,0.00037207,14]
[313950736,1707850032762,-500.0,0.00037207,14]
[313950737,1707850032785,-424.77660875,0.00037207,14]
[313950738,1707850032809,-2310.06,0.00037207,14]
[313950739,1707850032832,-2310.06,0.00037207,14]
[313950740,1707850032854,-2310.06,0.00037207,14]
[313950741,1707850032878,-2310.06,0.00037207,14]
[313950742,1707850032902,-2310.06,0.00037207,14]
[313950743,1707850032925,-2310.06,0.00037207,14]
[313950744,1707850032950,-2310.06,0.00037207,14]
[313950745,1707850032973,-2310.06,0.00037207,14]
[313950746,1707850032994,-2310.06,0.00037207,14]
[313950747,1707850033015,-2310.06,0.00037207,14]
[313950748,1707850033036,-2310.06,0.00037207,14]
[313950749,1707850033059,-2310.06,0.00037207,14]
[313950750,1707850033082,-2310.06,0.00037207,14]
[313950751,1707850033105,-2310.06,0.00037207,14]
[313950752,1707850033126,-2310.06,0.00037207,14]
[313950753,1707850033151,-2310.21624331,0.00037207,14]
[313950754,1707850033173,-500.0,0.00037207,14]
[313950755,1707850033195,-500.0,0.00037207,14]
[313950756,1707850033217,-500.0,0.00037207,14]
[313950757,1707850033240,-500.0,0.00037207,14]
[313950758,1707850033264,-500.0,0.00037207,14]
[313950759,1707850033285,-500.0,0.00037207,14]
[313950760,1707850033307,-500.0,0.00037207,14]
[313950761,1707850033328,-500.0,0.00037207,14]
[313950762,1707850033350,-500.0,0.00037207,14]
[313950763,1707850033371,-500.0,0.00037207,14]
[313950764,1707850033392,-500.0,0.00037207,14]
[313950765,1707850033413,-500.0,0.00037207,14]
[313950766,1707850033434,-375.15,0.00037207,14]
[313950767,1707850033455,-637.21,0.00037207,14]
[313950768,1707850033476,-637.21,0.00037207,14]
[313950769,1707850033497,-637.21,0.00037207,14]
[313950770,1707850033520,-637.21,0.00037207,14]
[313950771,1707850033542,-637.21,0.00037207,14]
[313950772,1707850033563,-637.21,0.00037207,14]
[313950773,1707850033584,-637.21,0.00037207,14]
[313950774,1707850033604,-637.21,0.00037207,14]
[313950775,1707850033625,-637.21,0.00037207,14]
[313950776,1707850033647,-637.21,0.00037207,14]
[313950777,1707850033667,-637.21,0.00037207,14]
[313950778,1707850033688,-637.21,0.00037207,14]
[313950779,1707850033711,-637.21,0.00037207,14]
[313950780,1707850033732,-637.21,0.00037207,14]
[313950781,1707850033754,-637.21,0.00037207,14]
[313950782,1707850033774,-637.42163217,0.00037207,14]
[313950783,1707850033797,-1747.38022649,0.00037237,4]
[313950784,1707850033820,-1435.25522947,0.00037237,4]
[313950785,1707850033841,-161.66447433,0.00037237,4]
[313950786,1707850033864,-7989.76732382,0.00037237,2]
[313950787,1707850033886,-12997.45275592,0.00037237,4]
[313950788,1707850033908,-999.0,0.00037242,35]
[313950789,1707850033929,-226.61,0.00037242,35]
[313950790,1707850033951,-176.0,0.00037242,35]
[313950791,1707850033974,-999.0,0.00037242,35]
[313950792,1707850033996,-393.0,0.00037242,35]
[313950793,1707850034171,-176.0,0.00037242,35]
[313950794,1707850034206,-393.0,0.00037242,35]
[313950795,1707850034226,-999.0,0.00037252,35]
[313950796,1707850034246,-157.25,0.00037252,35]
[313950797,1707850034272,-150.5,0.00037252,35]
[313950798,1707850034293,-176.0,0.00037252,35]
[313950799,1707850034314,-999.0,0.00037252,35]
[313950800,1707850034335,-393.0,0.00037252,35]
[313950801,1707850034356,-176.0,0.00037252,35]
[313950802,1707850034376,-999.0,0.00037252,35]
[313950803,1707850034397,-1007.19,0.00037252,35]
[313950804,1707850034418,-393.0,0.00037252,35]
[313950805,1707850034438,-176.0,0.00037252,35]
[313950806,1707850034459,-176.0,0.00037252,35]
[313950807,1707850034482,-393.0,0.00037252,35]
[313950808,1707850034504,-402.94,0.00037252,35]
[313950809,1707850034524,-999.0,0.00037262,35]
[313950810,1707850034545,-150.5,0.00037262,35]
[313950811,1707850034566,-150.5,0.00037262,35]
[313950812,1707850034587,-176.0,0.00037262,35]
[313950813,1707850034608,-999.0,0.00037262,35]
[313950814,1707850034628,-393.0,0.00037262,35]
[313950815,1707850034650,-176.0,0.00037262,35]
[313950816,1707850034671,-999.0,0.00037262,35]
[313950817,1707850034695,-999.0,0.00037262,35]
[313950818,1707850034719,-393.0,0.00037262,35]
[313950819,1707850034740,-176.0,0.00037262,35]
[313950820,1707850034762,-176.0,0.00037262,35]
[313950821,1707850034785,-393.0,0.00037262,35]
[313950822,1707850034805,-393.0,0.00037262,35]
[313950823,1707850034825,-150.5,0.00037262,35]
[313950824,1707850034845,-341.0,0.00037267,4]
[313950825,1707850034868,-915.40342186,0.0003727,10]
[313950826,1707850034892,-427.63664462,0.0003727,2]
[313950827,1707850034914,-155.45117966,0.0003727,4]
[313950828,1707850034934,-312.32642729,0.0003727,4]
[313950829,1707850034954,-385.18287823,0.0003727,10]
[313950830,1707850034974,-155.09916431,0.0003727,4]
[313950831,1707850034995,-164.89130769,0.0003727,4]
[313950832,1707850035016,-292.00522192,0.0003727,4]
[313950833,1707850035036,-314.9688596,0.0003727,4]
[313950834,1707850035055,-326.73535811,0.0003727,4]
[313950835,1707850035075,-380.62282008,0.0003727,4]
[313950836,1707850035173,-155.31545438,0.0003727,4]
[313950837,1707850035199,-158.34229467,0.0003727,4]
[313950838,1707850035221,-174.46199117,0.0003727,4]
[313950839,1707850035243,-535.79408158,0.0003727,4]
[313950840,1707850035267,-155.90837594,0.0003727,4]
[313950841,1707850035289,-156.77930405,0.0003727,4]
[313950842,1707850035310,-261.53886969,0.0003727,4]
[313950843,1707850035332,-911.03577233,0.0003727,5]
[313950844,1707850035353,-176.00454695,0.0003727,4]
[313950845,1707850035374,-154.95351395,0.0003727,4]
[313950846,1707850035394,-474.52525301,0.0003727,4]
[313950847,1707850035414,-198.3379802,0.0003727,4]
[313950848,1707850035435,-1037.67579198,0.0003727,3]
[313950849,1707850035455,-1511.29191943,0.0003727,3]
[313950850,1707850035485,-261.55927735,0.00037275,10]
[313950851,1707850035510,-1890.76491622,0.00037275,10]
[313950852,1707850035532,-445.67629785,0.00037275,10]
[313950853,1707850035558,-337.12507639,0.00037275,7]
[313950854,1707850035580,-500.0,0.00037275,10]
[313950855,1707850035604,-429.5,0.00037275,10]
[313950856,1707850035625,-909.0,0.00037282,2]
[313950857,1707850035646,-909.0,0.00037282,2]
[313950858,1707850035666,-299.56066,0.000373,12]
[313950859,1707850035686,-1276.2070171,0.00037319,2]
[313950860,1707850035710,-500.0,0.0003733,4]
[313950861,1707850035731,-150.0,0.000374,120]
[313950862,1707850035753,-17969.74068054,0.000375,60]
[313950863,1707850035773,-1001.0,0.000378,7]
[313950864,1707850035795,-886.39595581,0.000378,7]
[313950865,1707850035867,-113.60404419,0.000378,7]
[313950866,1707850035888,-1000.0,0.00037999,3]
[313950867,1707850035909,-2810.11148293,0.00038,120]
[313950868,1707850035929,-61001.32948288,0.00038,30]
[313950869,1707850035971,-790.35892036,0.00027901,2]
[313950870,1707850035991,-178.05486055,0.00037201,4]
[313950871,1707850036013,-347.04601791,0.00037201,4]
[313950872,1707850036036,-2996.60072523,0.00038,30]
[313950873,1707850036057,-5000.0,0.00038,2]
[313950874,1707850036078,-20192.41755429,0.00038,4]
[313950875,1707850036099,-1496.75835216,0.00038,120]
[313950876,1707850036119,-1000.0,0.00038,38]
[313950877,1707850036140,-1345.1,0.00038,30]
[313950878,1707850036160,-5000.0,0.00038,10]
[313950879,1707850036181,-200.0,0.00038,9]
[313950880,1707850036207,-995.59395041,0.00038178,7]
[313950881,1707850036227,-909.0,0.00038318,2]
[313950882,1707850036248,-161.64604855,0.00038356,2]
[313950883,1707850036273,-155.82041151,0.00038356,2]
[313950884,1707850036296,-500.0,0.00038356,14]
[313950885,1707850036317,-500.0,0.00038356,14]
[313950886,1707850036337,-500.0,0.00038356,14]
[313950887,1707850036359,-500.0,0.00038356,14]
[313950888,1707850036380,-500.0,0.00038356,14]
[313950889,1707850036402,-500.0,0.00038356,14]
[313950890,1707850036422,-500.0,0.00038356,14]
[313950891,1707850036442,-583.97062041,0.00038356,14]
[313950892,1707850036463,-500.0,0.00038356,2]
[313950893,1707850036485,-200.0,0.0003837,30]
[313950894,1707850036510,-200.0,0.0003837,30]
[313950895,1707850036531,-368.0,0.0003837,30]
[313950896,1707850036552,-2497.0,0.00038378,120]
[313950897,1707850036573,-31500.72634862,0.00038386,60]
[313950898,1707850036642,-8617.27365138,0.00038386,60]
[313950899,1707850036663,-220.67351815,0.00038516,2]
[313950900,1707850036684,-909.0,0.00038663,14]
[313950901,1707850036711,-10000.0,0.000388,24]
[313950902,1707850036733,-2000.0,0.00039,15]
[313950903,1707850036755,-922.15136612,0.00039,4]
[313950904,1707850036776,-1000.0,0.00039,39]
[313950905,1707850036799,-9925.45337981,0.00039,90]
[313950906,1707850036819,-22406.47931316,0.00039,10]
[313950907,1707850036839,-4201.75852086,0.00039,120]
[313950908,1707850036859,-4151.05,0.000393,60]
[313950909,1707850036879,-909.0,0.00039353,14]
[313950910,1707850036899,-160.0,0.0003939,3]
[313950911,1707850036920,-151.0,0.00039564,2]
[313950912,1707850036941,-133475.76162351,0.00039564,60]
[313950913,1707850039099,-550.18006288,0.00037202,4]
[313950914,1707850039123,-5794.88645234,0.00037202,4]
[313950915,1707850039146,-457476.59075478,0.00039564,60]
[313950916,1707850040106,-7098.02345881,0.00037202,2]
[313950917,1707850040131,-9863.49951119,0.00039564,60]
[313950991,1707850231700,-790.35892036,0.00027902,2]
[313950993,1707850231710,-154.84515485,0.00033482,5]
[313950995,1707850231720,-1533.16044773,0.00035,4]
[313950997,1707850231729,-592.91812692,0.00035,2]
[313950999,1707850231738,-1225.36,0.00037199,3]
[313951001,1707850231748,-1633.25283302,0.00037201,2]
[313951003,1707850231759,-154.84515485,0.00037201,4]
[313951005,1707850231768,-1590.24278675,0.00037202,3]
[313951007,1707850231782,-151.0,0.00037203,2]
[313951009,1707850231791,-57099.06158552,0.00037209,30]
[313951011,1707850231802,-96362.25268,0.00037209,30]
[313951045,1707850237819,-463821.65727,0.00037209,30]
[313951046,1707850237831,-94895.61482,0.00037209,30]
[313951047,1707850237888,-2359.42334139,0.00037209,30]
[313951048,1707850237952,-412081.34639,0.00037209,30]
[313951050,1707850237964,-1252.50584317,0.00037209,30]
[313951059,1707850241115,-1316.94999999,0.00037199,3]
[313951060,1707850241127,-971.18000001,0.00037199,3]
[313951061,1707850241136,-79146.91380999,0.00037209,30]
[313951062,1707850241147,-99976.5055212,0.00037209,30]
[313951063,1707850241159,-121900.60253054,0.00037209,30]
[313951064,1707850241176,-4112.51007392,0.00037209,30]
[313951065,1707850241187,-23690.33762661,0.00037209,30]
[313951093,1707850243386,-10192.20036646,0.00037209,30]
[313951101,1707850243452,-498.40856636,0.00037209,30]
[313951196,1707850245814,-1533.16044773,0.00035,4]
[313951197,1707850245824,-154.84515485,0.00037208,5]
[313951199,1707850245833,-4776.35228968,0.00037209,30]
[313951200,1707850245847,-212695.60137299,0.00037209,30]
[313951201,1707850245875,-16961.52297,0.00037209,30]
[313951414,1707851431862,-790.35892036,0.00024249,2]
[313951415,1707851431872,-692.54555526,0.00024249,2]
[313951416,1707851431882,-537.82724361,0.0002425,2]
[313951417,1707851431891,-154.82968734,0.00024251,4]
[313951418,1707851431900,-154.82968734,0.00024251,4]
[313951419,1707851431910,-154.82968734,0.00024252,2]
[313951420,1707851431920,-138.37921875,0.00024285,3]
[313951451,1707851437953,-269.5514982,0.00024285,3]
[313951453,1707851437963,-1504.28851007,0.00031999,4]
[313951458,1707851438012,-6968.18806442,0.00031999,4]
[313951461,1707851438022,-12576.65833985,0.00032,15]
[313951464,1707851438032,-24900.0,0.00032441,2]
[313951466,1707851438041,-422.86895178,0.00033519,2]
[313951469,1707851438050,-981.02470086,0.00033519,2]
[313951471,1707851438061,-1533.16044773,0.00035,4]
[313951473,1707851438070,-592.91812692,0.00035,2]
[313951475,1707851438079,-150.0,0.00035109,2]
[313951477,1707851438089,-250.0,0.00035199,15]
[313951478,1707851438105,-400.0,0.000353,18]
[313951479,1707851438122,-302.0,0.00036121,3]
[313951480,1707851438135,-273.0,0.00036712,14]
[313951481,1707851438145,-317.76,0.00036712,14]
[313951482,1707851438154,-271.77,0.00036712,14]
[313951483,1707851438164,-500.0,0.00036712,2]
[313951484,1707851438174,-500.0,0.00036712,14]
[313951485,1707851438183,-500.0,0.00036712,14]
[313951486,1707851438192,-1391.23,0.0003699,3]
[313951487,1707851438203,-40822.50742083,0.00037,30]
[313951496,1707851441181,-7500.1059686,0.00025264,2]
[313951497,1707851441191,-23175.42278728,0.00037,30]
[313951498,1707851441201,-189.16751336,0.0003714,2]
[313951499,1707851441210,-1276.2070171,0.00037198,2]
[313951500,1707851441221,-154.84515485,0.00037207,4]
[313951501,1707851441230,-1202.57082301,0.00037207,4]
[313951502,1707851441239,-324.25284351,0.00037207,4]
[313951503,1707851441248,-199.13004266,0.00037207,4]
[313951504,1707851441258,-1000.0,0.00037208,10]
[313951505,1707851441267,-500.0,0.00037208,14]
[313951506,1707851441277,-500.0,0.00037208,14]
[313951507,1707851441288,-537.68,0.00037208,14]
[313951508,1707851441297,-500.0,0.00037208,15]
[313951509,1707851441309,-500.0,0.00037208,15]
[313951510,1707851441320,-500.0,0.00037208,15]
[313951511,1707851441330,-500.0,0.00037208,15]
[313951512,1707851441339,-500.0,0.00037208,15]
[313951513,1707851441349,-500.0,0.00037208,15]
[313951514,1707851441359,-500.0,0.00037208,15]
[313951515,1707851441369,-500.0,0.00037208,15]
[313951516,1707851441379,-500.0,0.00037208,15]
[313951517,1707851441388,-500.0,0.00037208,15]
[313951518,1707851441397,-500.0,0.00037208,15]
[313951519,1707851441406,-500.0,0.00037208,15]
[313951520,1707851441416,-500.0,0.00037208,15]
[313951521,1707851441425,-500.0,0.00037208,15]
[313951522,1707851441435,-500.0,0.00037208,15]
[313951523,1707851441444,-500.0,0.00037208,15]
[313951524,1707851441453,-500.0,0.00037208,15]
[313951525,1707851441463,-500.0,0.00037208,15]
[313951526,1707851441472,-500.0,0.00037208,15]
[313951527,1707851441482,-500.0,0.00037208,15]
[313951528,1707851441491,-500.0,0.00037208,15]
[313951529,1707851441500,-254.21530418,0.00037208,15]
[313951530,1707851441510,-500.0,0.00037208,15]
[313951531,1707851441519,-500.0,0.00037208,15]
[313951532,1707851441528,-500.0,0.00037208,15]
[313951533,1707851441537,-500.0,0.00037208,15]
[313951534,1707851441547,-500.0,0.00037208,15]
[313951535,1707851441557,-170.65750514,0.00037208,15]
[313951536,1707851441571,-329.34249486,0.00037208,15]
[313951537,1707851441580,-500.0,0.00037208,15]
[313951538,1707851441589,-500.0,0.00037208,15]
[313951539,1707851441601,-500.0,0.00037208,15]
[313951540,1707851441610,-500.0,0.00037208,15]
[313951541,1707851441619,-500.0,0.00037208,15]
[313951542,1707851441629,-500.0,0.00037208,15]
[313951543,1707851441639,-500.0,0.00037208,15]
[313951544,1707851441648,-500.0,0.00037208,15]
[313951545,1707851441657,-500.0,0.00037208,15]
[313951546,1707851441666,-500.0,0.00037208,15]
[313951547,1707851441676,-500.0,0.00037208,15]
[313951548,1707851441687,-500.0,0.00037208,15]
[313951549,1707851441697,-500.0,0.00037208,15]
[313951550,1707851441706,-500.0,0.00037208,15]
[313951551,1707851441718,-500.0,0.00037208,15]
[313951552,1707851441728,-500.0,0.00037208,15]
[313951553,1707851441846,-500.0,0.00037208,15]
[313951554,1707851441857,-500.0,0.00037208,15]
[313951555,1707851441867,-500.0,0.00037208,15]
[313951556,1707851441876,-500.0,0.00037208,15]
[313951557,1707851441886,-500.0,0.00037208,15]
[313951558,1707851441895,-500.0,0.00037208,15]
[313951559,1707851441905,-500.0,0.00037208,15]
[313951560,1707851441915,-500.0,0.00037208,15]
[313951561,1707851441925,-163.53811563,0.00037209,2]
[313951562,1707851441934,-268.03483941,0.00037209,4]
[313951563,1707851441947,-9977.88442962,0.00037209,4]
[313951564,1707851441956,-10246.19460549,0.00037209,4]
[313951565,1707851441966,-200.0,0.00037209,2]
[313951566,1707851441975,-18138.33065031,0.00037209,30]
[313951567,1707851441986,-1887.64989921,0.00037209,30]
[313951568,1707851442023,-7233.53873407,0.00037209,30]
[313951569,1707851442034,-2232.41241047,0.00037209,30]
[313951605,1707851445926,-154.82968734,0.00033519,5]
[313951606,1707851445936,-546.19201418,0.00037209,30]
[313951607,1707851445948,-6416.30679251,0.00037209,30]
[313951608,1707851445983,-7512.94583725,0.00037209,30]
[313951609,1707851445993,-2382.28,0.00037234,3]
[313951610,1707851446002,-500.0,0.0003724,14]
[313951611,1707851446012,-500.0,0.0003724,14]
[313951612,1707851446021,-500.0,0.0003724,14]
[313951613,1707851446030,-402.03,0.0003724,14]
[313951614,1707851446039,-500.0,0.0003724,14]
[313951615,1707851446048,-500.0,0.0003724,14]
[313951616,1707851446057,-500.0,0.0003724,14]
[313951617,1707851446067,-277.96,0.0003724,14]
[313951618,1707851446076,-575.23,0.0003724,14]
[313951619,1707851446085,-500.0,0.0003724,14]
[313951620,1707851446094,-595.9756523,0.0003724,14]
[313951621,1707851446105,-463.78310056,0.0003724,14]
[313951622,1707851446181,-36.21689944,0.0003724,14]
[313951623,1707851446190,-500.0,0.0003724,14]
[313951624,1707851446199,-500.0,0.0003724,14]
[313951625,1707851446209,-500.0,0.0003724,14]
[313951626,1707851446219,-500.0,0.0003724,14]
[313951627,1707851446228,-500.0,0.0003724,14]
[313951628,1707851446237,-500.0,0.0003724,14]
[313951630,1707851446246,-532.71737307,0.0003724,14]
[313951631,1707851446255,-502.11550403,0.0003724,14]
[313951632,1707851446264,-582.1233579,0.0003724,14]
[313951633,1707851446273,-500.52664388,0.0003724,14]
[313951634,1707851446282,-637.75707412,0.0003724,14]
[313951635,1707851446292,-500.0,0.0003724,14]
[313951636,1707851446301,-503.9385645,0.0003724,14]
[313951637,1707851446310,-500.0,0.0003724,14]
[313951638,1707851446319,-500.0,0.0003724,14]
[313951639,1707851446329,-500.0,0.0003724,14]
[313951640,1707851446338,-500.0,0.0003724,14]
[313951641,1707851446347,-500.0,0.0003724,14]
[313951642,1707851446356,-500.0,0.0003724,14]
[313951643,1707851446365,-500.0,0.0003724,14]
[313951644,1707851446374,-994.42,0.0003724,14]
[313951645,1707851446383,-994.42,0.0003724,14]
[313951646,1707851446391,-994.42,0.0003724,14]
[313951647,1707851446400,-994.42,0.0003724,14]
[313951648,1707851446409,-994.42,0.0003724,14]
[313951649,1707851446418,-994.42,0.0003724,14]
[313951650,1707851446427,-994.42,0.0003724,14]
[313951651,1707851446436,-994.42,0.0003724,14]
[313951652,1707851446445,-994.42,0.0003724,14]
[313951653,1707851446454,-994.42,0.0003724,14]
[313951654,1707851446463,-994.42,0.0003724,14]
[313951655,1707851446475,-994.42,0.0003724,14]
[313951656,1707851446484,-994.42,0.0003724,14]
[313951657,1707851446493,-807.8547952,0.0003724,14]
[313951696,1707851750790,-790.35892036,0.00024284,2]
[313951697,1707851750820,-326.80472562,0.00024285,3]
[313951839,1707852638137,-232.66777038,0.00024275,2]
[313951840,1707852638147,-407.63525626,0.00024285,2]
[313951854,1707852641314,-692.54555526,0.00024274,2]
[313951855,1707852641324,-1861.97019033,0.00024285,2]
[313951856,1707852641442,-3190.03295863,0.00024285,2]
[313951857,1707852641464,-4871.38979908,0.00024285,2]
[313951858,1707852641473,-154.82968734,0.00024285,2]
[313951859,1707852641483,-245.0,0.00024285,3]
[313951860,1707852641492,-1644.35853026,0.00025283,2]
[313951861,1707852641502,-818.5954334,0.00025283,2]
[313951862,1707852641517,-70.75593887,0.00025283,2]
[313951863,1707852641529,-1120.940879,0.00025307,2]
[313951864,1707852641538,-200.0,0.00026712,15]
[313951865,1707852641547,-25.49419339,0.00027939,2]
[313951897,1707852646106,-168.31228065,0.00027939,2]
[313951898,1707852646116,-280.0,0.00029384,15]
[313951899,1707852646125,-196.3684735,0.00031755,2]
[313951900,1707852646135,-4355.31924585,0.00031954,2]
[313951901,1707852646257,-8803.42462285,0.00031954,2]
[313951902,1707852646267,-391.0,0.00032322,15]
[313951903,1707852646279,-1114.9970642,0.00033519,2]
[313951904,1707852646288,-1533.16044773,0.00035,4]
[313951905,1707852646297,-355.8026055,0.0003514,2]
[313951906,1707852646306,-200.0,0.00035554,15]
[313951907,1707852646316,-348.0,0.00035554,15]
[313951908,1707852646325,-5000.0,0.00036132,10]
[313951909,1707852646334,-1276.2070171,0.00037229,2]
[313951910,1707852646344,-1985.23,0.00037234,3]
[313951911,1707852646353,-1654.36,0.00037234,3]
[313951912,1707852646362,-1378.64,0.00037234,3]
[313951913,1707852646371,-1148.86,0.00037234,3]